{"text_format":"3","workbook":"xlsx","n_sheets":4,"sheets":["Suvestinė","Iš viso","Pajamos","Išlaidos"],"not_rendered":{"defined_names":13},"read":"whole","date_system":"1900"}

{"sheet":"Suvestinė","index":0,"n_rows":6,"n_cols":3,"rows_kept":6,"merged":[[0,1,0,2],[1,1,1,2]]}
[null,"ŠEIMOS MĖNESIO BIUDŽETAS"]
[null,"SUVESTINĖ"]
[null,"Balansas","Suma"]
[null,"Numatomas balansas (numatomos pajamos atėmus išlaidas)",{"$f":"NumatomosPajamos-NumatomosIšlaidos","v":{"v":1114,"d":"1,114 EUR"}}]
[null,"Faktinis balansas (faktinės pajamos atėmus išlaidas)",{"$f":"FaktinėsPajamos-FaktinėsIšlaidos","v":{"v":997,"d":"997 EUR"}}]
[null,"Skirtumas (faktinės atėmus numatomas)",{"$f":"FaktinisBalansas-NumatomasBalansas","v":{"v":-117,"d":"-117 EUR"}}]

{"sheet":"Iš viso","index":1,"n_rows":6,"n_cols":3,"rows_kept":6,"merged":[[0,1,0,2],[1,1,1,2]]}
[null,{"$f":"Darbaknygės_pavadinimas","v":"ŠEIMOS MĖNESIO BIUDŽETAS"}]
[null,"Iš viso"]
[null,"Sumos","Suma"]
[null,"Bendra numatoma kaina",{"$f":"NumatomosIšlaidos","v":{"v":4486,"d":"4,486 EUR"}}]
[null,"Bendra faktinė kaina",{"$f":"FaktinėsIšlaidos","v":{"v":4603,"d":"4,603 EUR"}}]
[null,"Bendras skirtumas",{"$f":"C4-C5","v":{"v":-117,"d":"-117 EUR"}}]

{"sheet":"Pajamos","index":2,"n_rows":7,"n_cols":5,"rows_kept":7,"merged":[[0,1,0,4],[1,1,1,4]]}
[null,{"$f":"Darbaknygės_pavadinimas","v":"ŠEIMOS MĖNESIO BIUDŽETAS"}]
[null,"PAJAMOS"]
[null,"Numatomos pajamos","Numatomos","Faktinės","Skirtumas"]
[null,"1 pajamos",{"v":4000,"d":"4,000.00 EUR"},{"v":4000,"d":"4,000.00 EUR"},{"$f":"PajamųLentelė[[#This Row],[Numatomos]]-PajamųLentelė[[#This Row],[Faktinės]]","v":{"v":0,"d":"0.00 EUR"}}]
[null,"2 pajamos",{"v":1300,"d":"1,300.00 EUR"},{"v":1300,"d":"1,300.00 EUR"},{"$f":"PajamųLentelė[[#This Row],[Numatomos]]-PajamųLentelė[[#This Row],[Faktinės]]","v":{"v":0,"d":"0.00 EUR"}}]
[null,"Papildomos pajamos",{"v":300,"d":"300.00 EUR"},{"v":300,"d":"300.00 EUR"},{"$f":"PajamųLentelė[[#This Row],[Numatomos]]-PajamųLentelė[[#This Row],[Faktinės]]","v":{"v":0,"d":"0.00 EUR"}}]
[null,"Mėnesio pajamų suma",{"$f":"SUBTOTAL(109,PajamųLentelė[Numatomos])","v":{"v":5600,"d":"5,600.00 EUR"}},{"$f":"SUBTOTAL(109,PajamųLentelė[Faktinės])","v":{"v":5600,"d":"5,600.00 EUR"}},{"$f":"SUBTOTAL(109,PajamųLentelė[Skirtumas])","v":{"v":0,"d":"0.00 EUR"}}]

{"sheet":"Išlaidos","index":3,"n_rows":80,"n_cols":6,"rows_kept":80,"merged":[[0,1,0,5],[1,1,1,5],[2,1,2,5]]}
[null,{"$f":"Darbaknygės_pavadinimas","v":"ŠEIMOS MĖNESIO BIUDŽETAS"}]
[null,"IŠLAIDOS"]
[]
[null,"Kategorija","Antrinė kategorija","Numatomos","Faktinės","Skirtumas"]
[null,"Būstas","Būsto paskola arba nuoma",{"v":1000,"d":"1,000.00 EUR"},{"v":1000,"d":"1,000.00 EUR"},{"$f":"SąnaudųLentelė[[#This Row],[Numatomos]]-SąnaudųLentelė[[#This Row],[Faktinės]]","v":{"v":0,"d":"0.00 EUR"}}]
[null,"Būstas","Antroji būsto paskola arba nuoma",{"v":0,"d":"0.00 EUR"},{"v":0,"d":"0.00 EUR"},{"$f":"SąnaudųLentelė[[#This Row],[Numatomos]]-SąnaudųLentelė[[#This Row],[Faktinės]]","v":{"v":0,"d":"0.00 EUR"}}]
[null,"Būstas","Telefonas",{"v":54,"d":"54.00 EUR"},{"v":100,"d":"100.00 EUR"},{"$f":"SąnaudųLentelė[[#This Row],[Numatomos]]-SąnaudųLentelė[[#This Row],[Faktinės]]","v":{"v":-46,"d":"-46.00 EUR"}}]
[null,"Būstas","Elektra",{"v":44,"d":"44.00 EUR"},{"v":56,"d":"56.00 EUR"},{"$f":"SąnaudųLentelė[[#This Row],[Numatomos]]-SąnaudųLentelė[[#This Row],[Faktinės]]","v":{"v":-12,"d":"-12.00 EUR"}}]
[null,"Būstas","Dujos",{"v":22,"d":"22.00 EUR"},{"v":28,"d":"28.00 EUR"},{"$f":"SąnaudųLentelė[[#This Row],[Numatomos]]-SąnaudųLentelė[[#This Row],[Faktinės]]","v":{"v":-6,"d":"-6.00 EUR"}}]
[null,"Būstas","Vandens ir kanalizacija",{"v":8,"d":"8.00 EUR"},{"v":8,"d":"8.00 EUR"},{"$f":"SąnaudųLentelė[[#This Row],[Numatomos]]-SąnaudųLentelė[[#This Row],[Faktinės]]","v":{"v":0,"d":"0.00 EUR"}}]
[null,"Būstas","Kabelinė televizija",{"v":34,"d":"34.00 EUR"},{"v":34,"d":"34.00 EUR"},{"$f":"SąnaudųLentelė[[#This Row],[Numatomos]]-SąnaudųLentelė[[#This Row],[Faktinės]]","v":{"v":0,"d":"0.00 EUR"}}]
[null,"Būstas","Atliekų tvarkymas",{"v":10,"d":"10.00 EUR"},{"v":10,"d":"10.00 EUR"},{"$f":"SąnaudųLentelė[[#This Row],[Numatomos]]-SąnaudųLentelė[[#This Row],[Faktinės]]","v":{"v":0,"d":"0.00 EUR"}}]
[null,"Būstas","Priežiūra arba remontas",{"v":23,"d":"23.00 EUR"},{"v":0,"d":"0.00 EUR"},{"$f":"SąnaudųLentelė[[#This Row],[Numatomos]]-SąnaudųLentelė[[#This Row],[Faktinės]]","v":{"v":23,"d":"23.00 EUR"}}]
[null,"Būstas","Tiekimas",{"v":0,"d":"0.00 EUR"},{"v":0,"d":"0.00 EUR"},{"$f":"SąnaudųLentelė[[#This Row],[Numatomos]]-SąnaudųLentelė[[#This Row],[Faktinės]]","v":{"v":0,"d":"0.00 EUR"}}]
[null,"Būstas","Kita",{"v":0,"d":"0.00 EUR"},{"v":0,"d":"0.00 EUR"},{"$f":"SąnaudųLentelė[[#This Row],[Numatomos]]-SąnaudųLentelė[[#This Row],[Faktinės]]","v":{"v":0,"d":"0.00 EUR"}}]
[null,"Transportas","1 transporto priemonės įmoka",{"v":16,"d":"16.00 EUR"},{"v":66,"d":"66.00 EUR"},{"$f":"SąnaudųLentelė[[#This Row],[Numatomos]]-SąnaudųLentelė[[#This Row],[Faktinės]]","v":{"v":-50,"d":"-50.00 EUR"}}]
[null,"Transportas","2 transporto priemonės įmoka",{"v":35,"d":"35.00 EUR"},{"v":42,"d":"42.00 EUR"},{"$f":"SąnaudųLentelė[[#This Row],[Numatomos]]-SąnaudųLentelė[[#This Row],[Faktinės]]","v":{"v":-7,"d":"-7.00 EUR"}}]
[null,"Transportas","Autobuso / taksi mokestis",{"v":1,"d":"1.00 EUR"},{"v":62,"d":"62.00 EUR"},{"$f":"SąnaudųLentelė[[#This Row],[Numatomos]]-SąnaudųLentelė[[#This Row],[Faktinės]]","v":{"v":-61,"d":"-61.00 EUR"}}]
[null,"Transportas","Draudimas",{"v":91,"d":"91.00 EUR"},{"v":27,"d":"27.00 EUR"},{"$f":"SąnaudųLentelė[[#This Row],[Numatomos]]-SąnaudųLentelė[[#This Row],[Faktinės]]","v":{"v":64,"d":"64.00 EUR"}}]
[null,"Transportas","Licencijavimas",{"v":80,"d":"80.00 EUR"},{"v":89,"d":"89.00 EUR"},{"$f":"SąnaudųLentelė[[#This Row],[Numatomos]]-SąnaudųLentelė[[#This Row],[Faktinės]]","v":{"v":-9,"d":"-9.00 EUR"}}]
[null,"Transportas","Kuras",{"v":18,"d":"18.00 EUR"},{"v":93,"d":"93.00 EUR"},{"$f":"SąnaudųLentelė[[#This Row],[Numatomos]]-SąnaudųLentelė[[#This Row],[Faktinės]]","v":{"v":-75,"d":"-75.00 EUR"}}]
[null,"Transportas","Priežiūra",{"v":34,"d":"34.00 EUR"},{"v":37,"d":"37.00 EUR"},{"$f":"SąnaudųLentelė[[#This Row],[Numatomos]]-SąnaudųLentelė[[#This Row],[Faktinės]]","v":{"v":-3,"d":"-3.00 EUR"}}]
[null,"Transportas","Kita",{"v":83,"d":"83.00 EUR"},{"v":61,"d":"61.00 EUR"},{"$f":"SąnaudųLentelė[[#This Row],[Numatomos]]-SąnaudųLentelė[[#This Row],[Faktinės]]","v":{"v":22,"d":"22.00 EUR"}}]
[null,"Draudimas","Namai",{"v":48,"d":"48.00 EUR"},{"v":63,"d":"63.00 EUR"},{"$f":"SąnaudųLentelė[[#This Row],[Numatomos]]-SąnaudųLentelė[[#This Row],[Faktinės]]","v":{"v":-15,"d":"-15.00 EUR"}}]
[null,"Draudimas","Sveikatos",{"v":21,"d":"21.00 EUR"},{"v":44,"d":"44.00 EUR"},{"$f":"SąnaudųLentelė[[#This Row],[Numatomos]]-SąnaudųLentelė[[#This Row],[Faktinės]]","v":{"v":-23,"d":"-23.00 EUR"}}]
[null,"Draudimas","Gyvybės",{"v":35,"d":"35.00 EUR"},{"v":65,"d":"65.00 EUR"},{"$f":"SąnaudųLentelė[[#This Row],[Numatomos]]-SąnaudųLentelė[[#This Row],[Faktinės]]","v":{"v":-30,"d":"-30.00 EUR"}}]
[null,"Draudimas","Kita",{"v":14,"d":"14.00 EUR"},{"v":75,"d":"75.00 EUR"},{"$f":"SąnaudųLentelė[[#This Row],[Numatomos]]-SąnaudųLentelė[[#This Row],[Faktinės]]","v":{"v":-61,"d":"-61.00 EUR"}}]
[null,"Maistas","Maisto prekės",{"v":79,"d":"79.00 EUR"},{"v":0,"d":"0.00 EUR"},{"$f":"SąnaudųLentelė[[#This Row],[Numatomos]]-SąnaudųLentelė[[#This Row],[Faktinės]]","v":{"v":79,"d":"79.00 EUR"}}]
[null,"Maistas","Restoranai",{"v":56,"d":"56.00 EUR"},{"v":50,"d":"50.00 EUR"},{"$f":"SąnaudųLentelė[[#This Row],[Numatomos]]-SąnaudųLentelė[[#This Row],[Faktinės]]","v":{"v":6,"d":"6.00 EUR"}}]
[null,"Maistas","Kita",{"v":96,"d":"96.00 EUR"},{"v":23,"d":"23.00 EUR"},{"$f":"SąnaudųLentelė[[#This Row],[Numatomos]]-SąnaudųLentelė[[#This Row],[Faktinės]]","v":{"v":73,"d":"73.00 EUR"}}]
[null,"Vaikai","Medicininės išlaidos",{"v":90,"d":"90.00 EUR"},{"v":90,"d":"90.00 EUR"},{"$f":"SąnaudųLentelė[[#This Row],[Numatomos]]-SąnaudųLentelė[[#This Row],[Faktinės]]","v":{"v":0,"d":"0.00 EUR"}}]
[null,"Vaikai","Drabužiai",{"v":33,"d":"33.00 EUR"},{"v":30,"d":"30.00 EUR"},{"$f":"SąnaudųLentelė[[#This Row],[Numatomos]]-SąnaudųLentelė[[#This Row],[Faktinės]]","v":{"v":3,"d":"3.00 EUR"}}]
[null,"Vaikai","Mokymo įstaigos mokestis",{"v":86,"d":"86.00 EUR"},{"v":64,"d":"64.00 EUR"},{"$f":"SąnaudųLentelė[[#This Row],[Numatomos]]-SąnaudųLentelė[[#This Row],[Faktinės]]","v":{"v":22,"d":"22.00 EUR"}}]
[null,"Vaikai","Mokykliniai reikmenys",{"v":76,"d":"76.00 EUR"},{"v":2,"d":"2.00 EUR"},{"$f":"SąnaudųLentelė[[#This Row],[Numatomos]]-SąnaudųLentelė[[#This Row],[Faktinės]]","v":{"v":74,"d":"74.00 EUR"}}]
[null,"Vaikai","Organizacijos mokesčiai ir įmokos",{"v":60,"d":"60.00 EUR"},{"v":90,"d":"90.00 EUR"},{"$f":"SąnaudųLentelė[[#This Row],[Numatomos]]-SąnaudųLentelė[[#This Row],[Faktinės]]","v":{"v":-30,"d":"-30.00 EUR"}}]
[null,"Vaikai","Dienpinigiai",{"v":37,"d":"37.00 EUR"},{"v":60,"d":"60.00 EUR"},{"$f":"SąnaudųLentelė[[#This Row],[Numatomos]]-SąnaudųLentelė[[#This Row],[Faktinės]]","v":{"v":-23,"d":"-23.00 EUR"}}]
[null,"Vaikai","Vaikų priežiūra",{"v":22,"d":"22.00 EUR"},{"v":70,"d":"70.00 EUR"},{"$f":"SąnaudųLentelė[[#This Row],[Numatomos]]-SąnaudųLentelė[[#This Row],[Faktinės]]","v":{"v":-48,"d":"-48.00 EUR"}}]
[null,"Vaikai","Žaislai / žaidimai",{"v":80,"d":"80.00 EUR"},{"v":21,"d":"21.00 EUR"},{"$f":"SąnaudųLentelė[[#This Row],[Numatomos]]-SąnaudųLentelė[[#This Row],[Faktinės]]","v":{"v":59,"d":"59.00 EUR"}}]
[null,"Vaikai","Kita",{"v":65,"d":"65.00 EUR"},{"v":20,"d":"20.00 EUR"},{"$f":"SąnaudųLentelė[[#This Row],[Numatomos]]-SąnaudųLentelė[[#This Row],[Faktinės]]","v":{"v":45,"d":"45.00 EUR"}}]
[null,"Augintiniai","Maistas",{"v":37,"d":"37.00 EUR"},{"v":34,"d":"34.00 EUR"},{"$f":"SąnaudųLentelė[[#This Row],[Numatomos]]-SąnaudųLentelė[[#This Row],[Faktinės]]","v":{"v":3,"d":"3.00 EUR"}}]
[null,"Augintiniai","Medicininės išlaidos",{"v":74,"d":"74.00 EUR"},{"v":86,"d":"86.00 EUR"},{"$f":"SąnaudųLentelė[[#This Row],[Numatomos]]-SąnaudųLentelė[[#This Row],[Faktinės]]","v":{"v":-12,"d":"-12.00 EUR"}}]
[null,"Augintiniai","Priežiūra",{"v":80,"d":"80.00 EUR"},{"v":92,"d":"92.00 EUR"},{"$f":"SąnaudųLentelė[[#This Row],[Numatomos]]-SąnaudųLentelė[[#This Row],[Faktinės]]","v":{"v":-12,"d":"-12.00 EUR"}}]
[null,"Augintiniai","Žaislai",{"v":61,"d":"61.00 EUR"},{"v":22,"d":"22.00 EUR"},{"$f":"SąnaudųLentelė[[#This Row],[Numatomos]]-SąnaudųLentelė[[#This Row],[Faktinės]]","v":{"v":39,"d":"39.00 EUR"}}]
[null,"Augintiniai","Kita",{"v":83,"d":"83.00 EUR"},{"v":51,"d":"51.00 EUR"},{"$f":"SąnaudųLentelė[[#This Row],[Numatomos]]-SąnaudųLentelė[[#This Row],[Faktinės]]","v":{"v":32,"d":"32.00 EUR"}}]
[null,"Asmeninė priežiūra","Medicininės išlaidos",{"v":28,"d":"28.00 EUR"},{"v":10,"d":"10.00 EUR"},{"$f":"SąnaudųLentelė[[#This Row],[Numatomos]]-SąnaudųLentelė[[#This Row],[Faktinės]]","v":{"v":18,"d":"18.00 EUR"}}]
[null,"Asmeninė priežiūra","Plaukai / nagai",{"v":25,"d":"25.00 EUR"},{"v":81,"d":"81.00 EUR"},{"$f":"SąnaudųLentelė[[#This Row],[Numatomos]]-SąnaudųLentelė[[#This Row],[Faktinės]]","v":{"v":-56,"d":"-56.00 EUR"}}]
[null,"Asmeninė priežiūra","Drabužiai",{"v":59,"d":"59.00 EUR"},{"v":72,"d":"72.00 EUR"},{"$f":"SąnaudųLentelė[[#This Row],[Numatomos]]-SąnaudųLentelė[[#This Row],[Faktinės]]","v":{"v":-13,"d":"-13.00 EUR"}}]
[null,"Asmeninė priežiūra","Drabužių valykla",{"v":89,"d":"89.00 EUR"},{"v":90,"d":"90.00 EUR"},{"$f":"SąnaudųLentelė[[#This Row],[Numatomos]]-SąnaudųLentelė[[#This Row],[Faktinės]]","v":{"v":-1,"d":"-1.00 EUR"}}]
[null,"Asmeninė priežiūra","Sveikatos klubas",{"v":78,"d":"78.00 EUR"},{"v":48,"d":"48.00 EUR"},{"$f":"SąnaudųLentelė[[#This Row],[Numatomos]]-SąnaudųLentelė[[#This Row],[Faktinės]]","v":{"v":30,"d":"30.00 EUR"}}]
[null,"Asmeninė priežiūra","Organizacijos mokesčiai ir įmokos",{"v":6,"d":"6.00 EUR"},{"v":73,"d":"73.00 EUR"},{"$f":"SąnaudųLentelė[[#This Row],[Numatomos]]-SąnaudųLentelė[[#This Row],[Faktinės]]","v":{"v":-67,"d":"-67.00 EUR"}}]
[null,"Asmeninė priežiūra","Kita",{"v":80,"d":"80.00 EUR"},{"v":66,"d":"66.00 EUR"},{"$f":"SąnaudųLentelė[[#This Row],[Numatomos]]-SąnaudųLentelė[[#This Row],[Faktinės]]","v":{"v":14,"d":"14.00 EUR"}}]
[null,"Pramogos","Vaizdo įrašai / DVD",{"v":11,"d":"11.00 EUR"},{"v":29,"d":"29.00 EUR"},{"$f":"SąnaudųLentelė[[#This Row],[Numatomos]]-SąnaudųLentelė[[#This Row],[Faktinės]]","v":{"v":-18,"d":"-18.00 EUR"}}]
[null,"Pramogos","CD",{"v":77,"d":"77.00 EUR"},{"v":32,"d":"32.00 EUR"},{"$f":"SąnaudųLentelė[[#This Row],[Numatomos]]-SąnaudųLentelė[[#This Row],[Faktinės]]","v":{"v":45,"d":"45.00 EUR"}}]
[null,"Pramogos","Filmai",{"v":71,"d":"71.00 EUR"},{"v":43,"d":"43.00 EUR"},{"$f":"SąnaudųLentelė[[#This Row],[Numatomos]]-SąnaudųLentelė[[#This Row],[Faktinės]]","v":{"v":28,"d":"28.00 EUR"}}]
[null,"Pramogos","Koncertai",{"v":64,"d":"64.00 EUR"},{"v":21,"d":"21.00 EUR"},{"$f":"SąnaudųLentelė[[#This Row],[Numatomos]]-SąnaudųLentelė[[#This Row],[Faktinės]]","v":{"v":43,"d":"43.00 EUR"}}]
[null,"Pramogos","Sporto renginiai",{"v":47,"d":"47.00 EUR"},{"v":57,"d":"57.00 EUR"},{"$f":"SąnaudųLentelė[[#This Row],[Numatomos]]-SąnaudųLentelė[[#This Row],[Faktinės]]","v":{"v":-10,"d":"-10.00 EUR"}}]
[null,"Pramogos","Teatras",{"v":28,"d":"28.00 EUR"},{"v":1,"d":"1.00 EUR"},{"$f":"SąnaudųLentelė[[#This Row],[Numatomos]]-SąnaudųLentelė[[#This Row],[Faktinės]]","v":{"v":27,"d":"27.00 EUR"}}]
[null,"Pramogos","Kita",{"v":13,"d":"13.00 EUR"},{"v":42,"d":"42.00 EUR"},{"$f":"SąnaudųLentelė[[#This Row],[Numatomos]]-SąnaudųLentelė[[#This Row],[Faktinės]]","v":{"v":-29,"d":"-29.00 EUR"}}]
[null,"Paskolos","Asmeninės",{"v":65,"d":"65.00 EUR"},{"v":6,"d":"6.00 EUR"},{"$f":"SąnaudųLentelė[[#This Row],[Numatomos]]-SąnaudųLentelė[[#This Row],[Faktinės]]","v":{"v":59,"d":"59.00 EUR"}}]
[null,"Paskolos","Studento",{"v":100,"d":"100.00 EUR"},{"v":36,"d":"36.00 EUR"},{"$f":"SąnaudųLentelė[[#This Row],[Numatomos]]-SąnaudųLentelė[[#This Row],[Faktinės]]","v":{"v":64,"d":"64.00 EUR"}}]
[null,"Paskolos","Kredito kortelė",{"v":29,"d":"29.00 EUR"},{"v":69,"d":"69.00 EUR"},{"$f":"SąnaudųLentelė[[#This Row],[Numatomos]]-SąnaudųLentelė[[#This Row],[Faktinės]]","v":{"v":-40,"d":"-40.00 EUR"}}]
[null,"Paskolos","Kredito kortelė",{"v":64,"d":"64.00 EUR"},{"v":3,"d":"3.00 EUR"},{"$f":"SąnaudųLentelė[[#This Row],[Numatomos]]-SąnaudųLentelė[[#This Row],[Faktinės]]","v":{"v":61,"d":"61.00 EUR"}}]
[null,"Paskolos","Kredito kortelė",{"v":34,"d":"34.00 EUR"},{"v":35,"d":"35.00 EUR"},{"$f":"SąnaudųLentelė[[#This Row],[Numatomos]]-SąnaudųLentelė[[#This Row],[Faktinės]]","v":{"v":-1,"d":"-1.00 EUR"}}]
[null,"Paskolos","Kita",{"v":38,"d":"38.00 EUR"},{"v":52,"d":"52.00 EUR"},{"$f":"SąnaudųLentelė[[#This Row],[Numatomos]]-SąnaudųLentelė[[#This Row],[Faktinės]]","v":{"v":-14,"d":"-14.00 EUR"}}]
[null,"Mokesčiai","Federaliniai",{"v":84,"d":"84.00 EUR"},{"v":36,"d":"36.00 EUR"},{"$f":"SąnaudųLentelė[[#This Row],[Numatomos]]-SąnaudųLentelė[[#This Row],[Faktinės]]","v":{"v":48,"d":"48.00 EUR"}}]
[null,"Mokesčiai","Šalies",{"v":2,"d":"2.00 EUR"},{"v":83,"d":"83.00 EUR"},{"$f":"SąnaudųLentelė[[#This Row],[Numatomos]]-SąnaudųLentelė[[#This Row],[Faktinės]]","v":{"v":-81,"d":"-81.00 EUR"}}]
[null,"Mokesčiai","Vietiniai",{"v":40,"d":"40.00 EUR"},{"v":20,"d":"20.00 EUR"},{"$f":"SąnaudųLentelė[[#This Row],[Numatomos]]-SąnaudųLentelė[[#This Row],[Faktinės]]","v":{"v":20,"d":"20.00 EUR"}}]
[null,"Mokesčiai","Kita",{"v":35,"d":"35.00 EUR"},{"v":72,"d":"72.00 EUR"},{"$f":"SąnaudųLentelė[[#This Row],[Numatomos]]-SąnaudųLentelė[[#This Row],[Faktinės]]","v":{"v":-37,"d":"-37.00 EUR"}}]
[null,"Santaupos arba investicijos","Pensijos sąskaita",{"v":34,"d":"34.00 EUR"},{"v":20,"d":"20.00 EUR"},{"$f":"SąnaudųLentelė[[#This Row],[Numatomos]]-SąnaudųLentelė[[#This Row],[Faktinės]]","v":{"v":14,"d":"14.00 EUR"}}]
[null,"Santaupos arba investicijos","Investicijų sąskaita",{"v":68,"d":"68.00 EUR"},{"v":98,"d":"98.00 EUR"},{"$f":"SąnaudųLentelė[[#This Row],[Numatomos]]-SąnaudųLentelė[[#This Row],[Faktinės]]","v":{"v":-30,"d":"-30.00 EUR"}}]
[null,"Santaupos arba investicijos","Universitetas",{"v":89,"d":"89.00 EUR"},{"v":68,"d":"68.00 EUR"},{"$f":"SąnaudųLentelė[[#This Row],[Numatomos]]-SąnaudųLentelė[[#This Row],[Faktinės]]","v":{"v":21,"d":"21.00 EUR"}}]
[null,"Santaupos arba investicijos","Kita",{"v":82,"d":"82.00 EUR"},{"v":26,"d":"26.00 EUR"},{"$f":"SąnaudųLentelė[[#This Row],[Numatomos]]-SąnaudųLentelė[[#This Row],[Faktinės]]","v":{"v":56,"d":"56.00 EUR"}}]
[null,"Dovanos ir aukos","Labdara 1",{"v":41,"d":"41.00 EUR"},{"v":85,"d":"85.00 EUR"},{"$f":"SąnaudųLentelė[[#This Row],[Numatomos]]-SąnaudųLentelė[[#This Row],[Faktinės]]","v":{"v":-44,"d":"-44.00 EUR"}}]
[null,"Dovanos ir aukos","Labdara 2",{"v":0,"d":"0.00 EUR"},{"v":69,"d":"69.00 EUR"},{"$f":"SąnaudųLentelė[[#This Row],[Numatomos]]-SąnaudųLentelė[[#This Row],[Faktinės]]","v":{"v":-69,"d":"-69.00 EUR"}}]
[null,"Dovanos ir aukos","Labdara 3",{"v":2,"d":"2.00 EUR"},{"v":57,"d":"57.00 EUR"},{"$f":"SąnaudųLentelė[[#This Row],[Numatomos]]-SąnaudųLentelė[[#This Row],[Faktinės]]","v":{"v":-55,"d":"-55.00 EUR"}}]
[null,"Teisinės","Teisininkas",{"v":7,"d":"7.00 EUR"},{"v":98,"d":"98.00 EUR"},{"$f":"SąnaudųLentelė[[#This Row],[Numatomos]]-SąnaudųLentelė[[#This Row],[Faktinės]]","v":{"v":-91,"d":"-91.00 EUR"}}]
[null,"Teisinės","Alimentai",{"v":39,"d":"39.00 EUR"},{"v":85,"d":"85.00 EUR"},{"$f":"SąnaudųLentelė[[#This Row],[Numatomos]]-SąnaudųLentelė[[#This Row],[Faktinės]]","v":{"v":-46,"d":"-46.00 EUR"}}]
[null,"Teisinės","Mokėjimai paskolai arba teismo sprendimui padengti",{"v":78,"d":"78.00 EUR"},{"v":84,"d":"84.00 EUR"},{"$f":"SąnaudųLentelė[[#This Row],[Numatomos]]-SąnaudųLentelė[[#This Row],[Faktinės]]","v":{"v":-6,"d":"-6.00 EUR"}}]
[null,"Teisinės","Kita",{"v":93,"d":"93.00 EUR"},{"v":71,"d":"71.00 EUR"},{"$f":"SąnaudųLentelė[[#This Row],[Numatomos]]-SąnaudųLentelė[[#This Row],[Faktinės]]","v":{"v":22,"d":"22.00 EUR"}}]
[null,"Suma",{"$nulls":3},{"$f":"SUBTOTAL(109,SąnaudųLentelė[Skirtumas])","v":{"v":-75,"d":"-75.00 EUR"}}]